[Event "DFMM-LV 2023"]
[Site "Braunfels"]
[Date "2023.06.09"]
[Round "1.33"]
[White "Wagner, Margarethe"]
[Black "Koehler, Inken"]
[Result "1-0"]
[Annotator "TA"]
[ECO "B42"]
[WhiteElo "1831"]
[BlackElo "2008"]
[PlyCount "135"]
[EventDate "2023.06.09"]
[EventType "team-tourn"]
[EventCountry "GER"]
[SourceTitle "playchess.com"]
[Source "ChessBase"]
[SourceQuality "1"]
[TimeControl "40/5400+30:1800+30"]

{[%evp 15,135,29,16,-3,11,0,-6,-11,0,-16,-18,-91,-12,-114,-52,-83,-52,-71,0,0,0,0,5,-5,0,0,0,0,18,-36,-28,-119,-123,-114,66,59,52,-35,-43,-104,-81,-160,-156,-366,-339,-330,-330,-333,-167,-185,-157,-319,-144,-99,-73,-345,-341,-318,20,-66,-25,-31,-18,-6,66,88,145,147,152,153,137,147,170,168,189,182,214,193,186,189,351,368,403,414,407,351,370,360,354,331,1009,990,835,314,314,323,352,364,365,345,287,354,352,326,345,323,413,406,397,394,394,387,5413,5393,29984,29985,29985,29986,29986,29987,29987,29982]} 1. e4 {[%emt 0:00:03]} c5 {[%emt 0:00:05]} 2. Nf3 {[%emt 0:00:06]} e6 {[%emt 0:00:04]} 3. d4 {[%emt 0:00:05]} cxd4 {[%emt 0:00:06]} 4. Nxd4 {[%emt 0:00:07]} Nf6 {[%emt 0:00:08]} 5. Nc3 {[%emt 0:00:15]} d6 {[%emt 0:00:35]} 6. Bd3 {[%emt 0:03:33]} a6 {[%emt 0:00:32]} 7. O-O {[%emt 0:01:19]} Qc7 {[%emt 0:00:38]} 8. Qe2 {[%emt 0:01:40]} Be7 {[%emt 0:01:01]} 9. a4 {[%emt 0:04:05] B42: Sicilian: Kan Variation: 5 Bd3.} b6 {[%emt 0:02:30] [#]} 10. Na2 $146 {[%emt 0:09:08]} ({Predecessor:} 10. f4 Nbd7 11. Bd2 Bb7 12. Kh1 h5 13. Rae1 h4 14. Kg1 Rc8 15. Bxa6 h3 16. Ndb5 Qb8 17. Bxb7 Qxb7 {1-0 Najer,E (2679)-Pichot,A (2544) Wch Blitz Doha 2016 (11)}) 10... O-O {[%emt 0:04:28]} 11. c4 {[%emt 0:01:44] The position is equal.} Nbd7 {[%emt 0:06:11]} 12. b3 {[%emt 0:09:58]} Bb7 {[%emt 0:04:44]} 13. f3 {[%emt 0:10:07]} (13. Re1 $11 {keeps the balance.}) 13... Ne5 {[%emt 0:16:00]} (13... d5 $17 14. exd5 Bc5) 14. Re1 {[%emt 0:13:35]} (14. Bb2 $11) 14... Rfe8 {[%emt 0:08:05]} ({Black should play} 14... d5 $1 $17 15. cxd5 Bc5) 15. Kh1 {[%emt 0:05:16]} Rad8 {[%emt 0:09:01]} 16. Bc2 {[%emt 0:11:53]} Ng6 {[%emt 0:08:49]} (16... d5 $17 {...dxe4 is the strong threat.} 17. exd5 exd5) 17. Bb2 $11 {[%emt 0:02:57]} Nd7 {[%emt 0:05:50]} 18. Rad1 {[%emt 0:02:39]} Bf6 {[%emt 0:02:48]} 19. Qf2 {[%emt 0:02:59]} Qc5 {[%emt 0:03:57][%cal Ob6b5]} 20. Qd2 {[%emt 0:02:23]} Qh5 {[%emt 0:05:04]} 21. Qf2 {[%emt 0:03:06]} Nf4 {[%emt 0:05:40]} 22. Ba1 {[%emt 0:01:39]} (22. Nc3 $11) 22... Be5 $15 {[%emt 0:00:52][%cal Of4d3]} 23. g3 {[%emt 0:00:39]} (23. h3 $11) 23... Nh3 $17 {[%emt 0:01:14]} 24. Qg2 {[%emt 0:00:13]} Ng5 $2 {[%emt 0:00:57]} (24... f5 $1 $17 {Hoping for ...Ng5.} 25. Nc3 Ng5) 25. f4 $14 {[%emt 0:04:21]} Bxd4 {[%emt 0:00:31]} 26. Bxd4 {[%emt 0:00:02]} (26. g4 $1 $14 Qh4 27. Bxd4) 26... Nf3 $36 {[%emt 0:01:30][%mdl 2048] Black has the initiative.} 27. Qe2 {[%emt 0:00:20]} (27. Re3 $15 Nxd4 28. Rxd4) 27... f5 $17 {[%emt 0:02:02][%cal Bf7f5,Bf5e4][%mdl 32]} 28. Rf1 {[%emt 0:04:01]} (28. Nc3 $142 e5 29. fxe5) 28... fxe4 $1 {[%emt 0:00:57][%cal Oe4e3]} 29. g4 $2 {[%emt 0:01:38]} (29. Nc3 $17 d5 30. Rf2) 29... Nxd4 {[%emt 0:02:51]} (29... Qxg4 30. Bxe4 Bxe4 31. Qxe4 Nxd4 32. Qxd4 $17) 30. Rxd4 {[%emt 0:00:29]} Qc5 {[%emt 0:00:22]} 31. Rfd1 {[%emt 0:03:07]} d5 {[%emt 0:02:28]} (31... e5 $142 32. fxe5 (32. Rxd6 $2 exf4 33. b4 e3+ 34. R6d5 Bxd5+ 35. cxd5 Qc7 $19) 32... Qxe5) 32. b4 {[%emt 0:00:25] [#]} (32. Bxe4 $2 dxe4 33. Rxd7 e3+ 34. Kg1 Qc6 35. Rxb7 Rxd1+ 36. Qxd1 Qxb7 $19) 32... Qc7 {[%emt 0:00:48]} 33. cxd5 $2 {[%emt 0:00:46] [#]} (33. Nc3 $17) 33... exd5 {[%emt 0:01:31]} (33... Nf6 $1 $19 {[%cal Rd8d5]} 34. Bb3 Qxf4) 34. Bb3 {[%emt 0:00:01] Against} Nf8 {[%emt 0:02:31] White must now prevent ...Ne6.} 35. Rxe4 {[%emt 0:00:15][%mdl 8192]} (35. f5 $17) 35... Rxe4 $19 {[%emt 0:00:57]} 36. Qxe4 {[%emt 0:00:01]} Qf7 {[%emt 0:00:16]} (36... Kh8 $19 37. Bxd5 Rxd5 38. Rxd5 Qc6) 37. Qd4 {[%emt 0:00:12]} ({White should try} 37. Nc3 $11) 37... Kh8 {[%emt 0:00:50]} 38. f5 {[%emt 0:00:10] Repels Ne6} (38. Qxb6 $2 d4+ 39. Kg1 Qxb3 $19) 38... Qe7 {[%emt 0:01:18]} 39. Nc3 {[%emt 0:00:28][%cal Rb3d5]} (39. Qxb6 $2 d4+ $19) 39... Qd6 {[%emt 0:01:13]} (39... Nd7 $11) 40. Bxd5 $14 {[%emt 0:02:39] White has more active pieces.} Bxd5+ {[%emt 0:00:26]} (40... Qe7 $142) 41. Qxd5 $16 {[%emt 0:30:02]} Qxd5+ {[%emt 0:01:09]} 42. Rxd5 $14 {[%emt 0:00:00][%mdl 4096] Endgame KRN-KRN} Rc8 {[%emt 0:02:13]} 43. Ne4 {[%emt 0:00:00]} Rc1+ {[%emt 0:06:26]} 44. Kg2 {[%emt 0:00:00] aiming for Rd8.} Rc4 {[%emt 0:00:03]} 45. Kf3 {[%emt 0:00:00]} (45. Rd8 Kg8) 45... g6 {[%emt 0:02:33]} 46. Rd8 {[%emt 0:00:00]} Kg8 {[%emt 0:01:32]} 47. f6 {[%emt 0:00:00] Strongly threatening Re8.} h6 $2 {[%emt 0:02:16]} (47... Rxb4 {is a better defense.} 48. Ng5 h5 49. gxh5 gxh5) 48. g5 $18 {[%emt 0:00:00]} hxg5 {[%emt 0:04:26]} 49. Nxg5 {[%emt 0:00:00]} Rc6 {[%emt 0:00:21]} 50. Ne4 {[%emt 0:00:00]} Kf7 {[%emt 0:05:04]} 51. Ra8 {[%emt 0:00:00]} Nd7 {[%emt 0:03:06]} 52. Rxa6 {[%emt 0:01:39] Threatens to win with b5.} Nxf6 $2 {[%emt 0:02:36]} (52... g5 53. b5 (53. Nxg5+ Kxf6 54. Ne4+ Ke5 $18) 53... Rc1) 53. b5 {[%emt 0:00:09][%mdl 64] Deflection} Rc1 {[%emt 0:02:29]} 54. Ng5+ $2 {[%emt 0:00:07]} (54. Nxf6 Kxf6 55. Rxb6+ Ke5 56. Rxg6 Rf1+ 57. Ke2) 54... Ke7 {[%emt 0:00:19]} 55. Rxb6 {[%emt 0:00:12]} Rc3+ {[%emt 0:00:26]} 56. Ke2 {[%emt 0:00:50]} Nd5 {[%emt 0:00:56]} 57. Re6+ {[%emt 0:00:44]} ({Don't play} 57. Rxg6 Rc4 $18) 57... Kd7 {[%emt 0:00:13]} 58. Re5 {[%emt 0:01:12]} Nf4+ {[%emt 0:00:16]} 59. Kd2 {[%emt 0:00:27]} Ra3 {[%emt 0:01:12]} 60. Re4 {[%emt 0:00:12]} Ra2+ {[%emt 0:00:45]} 61. Kc3 {[%emt 0:00:55]} Nd5+ {[%emt 0:00:26]} 62. Kb3 {[%emt 0:01:21]} Rxh2 {[%emt 0:00:47]} 63. Re5 {[%emt 0:00:41]} Rd2 $2 {[%emt 0:00:35]} (63... Kd6 64. Re6+ Kc7 65. Rxg6 Rh5 66. Rc6+ Kb7) 64. Ne4 {[%emt 0:00:51] Threatening mate with Rxd5+.} ({Weaker is} 64. a5 Rd4 $16) 64... Rd4 {[%emt 0:01:15] [#]} 65. Rxd5+ $1 {[%emt 0:02:28][%mdl 576] Remove Defender, Decoy. White mates.} Rxd5 {[%emt 0:00:05]} 66. Nf6+ {[%emt 0:00:01]} Kd6 {[%emt 0:00:08]} 67. Nxd5 {[%emt 0:00:04]} Kxd5 {[%emt 0:00:03]} 68. a5 {[%emt 0:00:05] What a bad dream for Black.   Weighted Error Value: White=0.46/Black=0.44} 1-0

[Event "DFMM-LV 2023"]
[Site "Braunfels"]
[Date "2023.06.09"]
[Round "1.34"]
[White "Kopylov, Luba"]
[Black "Albayrak, Nese Pinar"]
[Result "1-0"]
[Annotator "TA"]
[ECO "E87"]
[WhiteElo "1993"]
[BlackElo "1763"]
[PlyCount "67"]
[EventDate "2023.06.09"]
[EventType "team-tourn"]
[EventCountry "GER"]
[SourceTitle "playchess.com"]
[Source "ChessBase"]
[SourceQuality "1"]
[TimeControl "40/5400+30:1800+30"]

{[%evp 17,67,59,95,30,101,21,30,20,76,80,148,149,152,156,154,156,143,151,156,150,122,147,146,86,127,122,121,37,112,29,75,52,132,94,97,70,119,78,95,97,122,58,63,43,206,198,275,263,1323,1354,29974,29976]} 1. d4 {[%emt 0:00:05]} Nf6 {[%emt 0:00:06]} 2. c4 {[%emt 0:00:06]} g6 {[%emt 0:00:06]} 3. Nc3 {[%emt 0:00:08]} Bg7 {[%emt 0:00:05]} 4. e4 {[%emt 0:00:10]} d6 {[%emt 0:00:07]} 5. f3 {[%emt 0:00:41]} O-O {[%emt 0:00:09]} 6. Be3 {[%emt 0:00:06]} e5 {[%emt 0:00:23]} 7. d5 {[%emt 0:00:30]} Na6 {[%emt 0:01:18]} 8. Qd2 {[%emt 0:01:46]} Nc5 {[%emt 0:02:53]} 9. Nge2 {[%emt 0:09:09]} a5 {[%emt 0:02:51]} 10. g4 {[%emt 0:05:08] E87: King's Indian: Sämisch: 6...e5 7 d5.} ({White should play} 10. O-O-O $16) 10... c6 {[%emt 0:10:46]} (10... Bxg4 $1 $11 11. fxg4 Nfxe4 12. Nxe4 Nxe4) 11. dxc6 {[%emt 0:04:15]} (11. g5 $16 Nh5 12. Rd1) 11... bxc6 $11 {[%emt 0:00:09] [#]} 12. O-O-O $146 {[%emt 0:00:11] White has an edge.} ({Predecessor:} 12. Rd1 Nb7 13. h4 Be6 14. Ng3 h5 15. gxh5 Nxh5 16. Nxh5 gxh5 17. Bh6 f6 18. Rg1 {1-0 Jusifow,E (1871)-Weist,T (1704) Nuremberg-ch op 06th 2006 (3.33)}) 12... Qb6 {[%emt 0:02:34]} (12... Bxg4 $11 {remains equal.} 13. fxg4 Nxg4) 13. Na4 $16 {[%emt 0:06:43]} Qb4 {[%emt 0:22:24]} (13... Qb7 $142 14. Nxc5 dxc5) 14. Qxb4 {[%emt 0:06:34][%mdl 64] Remove Defender} (14. Qxd6 $2 {too greedy.} Nxa4 15. Qxb4 axb4 $19) 14... axb4 {[%emt 0:00:03]} 15. Nxc5 {[%emt 0:00:10]} dxc5 {[%emt 0:00:16]} 16. Bxc5 {[%emt 0:00:23]} Re8 {[%emt 0:01:42]} 17. Kb1 {[%emt 0:02:18]} ({But not} 17. Bxb4 Rxa2 18. Kb1 Ra7 $14) 17... Be6 {[%emt 0:07:04]} 18. Nc1 {[%emt 0:00:37]} Bf8 {[%emt 0:06:33]} 19. Bxf8 {[%emt 0:05:48]} Kxf8 {[%emt 0:00:17] [#]} 20. h4 {[%emt 0:00:31]} (20. Nd3 $142 $1) 20... h5 {[%emt 0:03:12]} 21. g5 {[%emt 0:00:08]} Nd7 {[%emt 0:04:36]} 22. Rd6 {[%emt 0:10:40]} (22. Nd3 $16) 22... Ra6 {[%emt 0:11:51]} (22... Rec8 $14) 23. b3 {[%emt 0:18:00]} (23. Nd3 $16) 23... Ke7 {[%emt 0:04:18]} (23... Nc5 $11) 24. Rd2 {[%emt 0:01:57][%cal Oc4c5]} c5 {[%emt 0:04:47]} (24... Nc5 $14) 25. Nd3 {[%emt 0:00:23]} Rf8 {[%emt 0:06:45]} 26. Bg2 {[%emt 0:03:43]} Ra5 {[%emt 0:04:06]} (26... Rd6 $14) 27. Rhd1 {[%emt 0:01:21]} Rfa8 {[%emt 0:01:42]} 28. f4 {[%emt 0:02:12] Strongly threatening f5.} exf4 {[%emt 0:01:22] [#]} 29. Nxf4 {[%emt 0:02:15]} ({White should try} 29. e5 $1 $16) 29... Ne5 $14 {[%emt 0:00:56]} 30. Nd5+ {[%emt 0:04:43]} Bxd5 $2 {[%emt 0:00:42] Loses the game.} (30... Kf8 $14) 31. exd5 $18 {[%emt 0:00:06] Black must now prevent d6+.} ({Much less strong is} 31. Rxd5 $6 Nc6 32. R1d2 Kf8 $14) 31... Kd6 {[%emt 0:00:28]} (31... Re8 {might work better.} 32. Re2 Kd6) 32. Rf1 {[%emt 0:00:16]} R8a6 $2 {[%emt 0:01:26]} (32... Rf8 33. Re2 Ng4) 33. Re2 {[%emt 0:00:45]} Ng4 {[%emt 0:00:30]} 34. Rxf7 {[%emt 0:15:42] Weighted Error Value: White=0.32/Black=0.72} 1-0

[Event "DFMM-LV 2023"]
[Site "Braunfels"]
[Date "2023.06.09"]
[Round "1.35"]
[White "Albayrak, Berrak"]
[Black "Braeutigam, Katerina"]
[Result "0-1"]
[Annotator "TA"]
[ECO "B10"]
[WhiteElo "1664"]
[BlackElo "1957"]
[PlyCount "76"]
[EventDate "2023.06.09"]
[EventType "team-tourn"]
[EventCountry "GER"]
[SourceTitle "playchess.com"]
[Source "ChessBase"]
[SourceQuality "1"]
[TimeControl "40/5400+30:1800+30"]

{[%evp 15,76,4,21,-33,-27,-46,-43,-47,-39,-58,-60,-67,-64,-72,-37,-121,-105,-112,-115,-188,-191,-186,-190,-185,-186,-189,-119,-113,-100,-94,-77,-139,-111,-113,-106,-198,-113,-298,-300,-272,-201,-284,-283,-349,-357,-577,-584,-554,-581,-567,-451,-705,-561,-540,-536,-526,-521,-2016,-1971,-1957,-1857,-29978,-29952]} 1. e4 {[%emt 0:00:56]} c6 {[%emt 0:00:03]} 2. d3 {[%emt 0:00:10]} d5 {[%emt 0:00:07]} 3. Nd2 {[%emt 0:00:05]} g6 {[%emt 0:00:24]} 4. Ngf3 {[%emt 0:00:14]} Bg7 {[%emt 0:00:11]} 5. g3 {[%emt 0:01:03]} e5 {[%emt 0:04:25]} 6. Bg2 {[%emt 0:01:26]} Ne7 {[%emt 0:02:10]} 7. O-O {[%emt 0:01:56]} O-O {[%emt 0:00:44]} 8. Re1 {[%emt 0:07:21]} Qc7 {[%emt 0:07:51]} 9. exd5 {[%emt 0:08:19] B10: Caro-Kann: 2 d3 and 2 c4.} (9. c3 $11) 9... cxd5 $15 {[%emt 0:02:01]} 10. c4 {[%emt 0:01:57]} Rd8 {[%emt 0:15:10]} 11. cxd5 {[%emt 0:16:05] Black is slightly better.} Nxd5 {[%emt 0:01:16]} 12. Nc4 {[%emt 0:05:57]} Nc6 {[%emt 0:35:48][%cal Bb8c6,Bc6b4,Bb4c2][%mdl 32]} 13. Bg5 {[%emt 0:08:08]} f6 {[%emt 0:02:22]} 14. Bd2 {[%emt 0:02:33][%cal Od3d4]} Qf7 {[%emt 0:05:20] [#]} 15. Qe2 $146 {[%emt 0:17:38]} (15. d4 $15) ({Predecessor:} 15. Na5 Nxa5 16. Bxa5 b6 17. Bd2 Bb7 18. Qb3 Re8 19. a4 a5 20. Rac1 Rad8 21. h4 {0-1 Hickman,J (2012)-Williams,P (2132) Guernsey op Grand Havre Bay 2010 (5)}) 15... Ndb4 {[%emt 0:02:08]} 16. Bxb4 {[%emt 0:01:51]} Nxb4 {[%emt 0:00:07]} 17. d4 {[%emt 0:09:25]} exd4 $19 {[%emt 0:05:06]} 18. Qe7 {[%emt 0:02:29]} Qxe7 {[%emt 0:00:26]} 19. Rxe7 {[%emt 0:00:04]} Kf8 {[%emt 0:03:04]} 20. Re2 {[%emt 0:04:56]} Bh6 {[%emt 0:08:40]} (20... d3 $19 21. Rd1 Bf5) 21. Re4 $17 {[%emt 0:05:27]} Nc2 {[%emt 0:02:49]} 22. Rd1 {[%emt 0:00:51][%cal Oc4a5]} d3 $36 {[%emt 0:00:36][%mdl 2048] Black is really pushing.} 23. Ncd2 {[%emt 0:02:18]} ({White should try} 23. Rh4 Bg7 24. Na5) 23... Bf5 {[%emt 0:00:23]} 24. Rh4 {[%emt 0:00:37]} Kg7 {[%emt 0:00:16] Black is much more active.} 25. Rc4 {[%emt 0:00:34]} (25. Nb3 $17 {was called for.}) 25... Rd7 {[%emt 0:00:34]} (25... Rac8 $19 26. Ra4 a6) 26. Nh4 $2 {[%emt 0:00:31] [#] Loses the game.} (26. Nb3 $17 {is a better defense.}) 26... Be6 $19 {[%emt 0:00:21]} 27. Ra4 {[%emt 0:00:30]} a6 {[%emt 0:00:47]} 28. f4 {[%emt 0:00:35]} (28. Nhf3 $142) 28... Ne3 {[%emt 0:00:39]} 29. Re1 {[%emt 0:00:19]} Nxg2 {[%emt 0:00:09]} 30. Rxe6 {[%emt 0:00:34]} (30. Nxg2 Kf7 31. Ne3) 30... Nxh4 {[%emt 0:00:17]} 31. gxh4 {[%emt 0:00:04]} Rc8 {[%emt 0:00:46] [#] ...Rc2 would be deadly.} 32. Kf2 {[%emt 0:00:58]} Kf7 {[%emt 0:00:22]} 33. Rb6 {[%emt 0:00:33]} (33. Re1 $142) 33... Re8 {[%emt 0:00:27] Strongly threatening ...Re2+.} 34. Re4 {[%emt 0:00:32] Inhibits Re2+.} Rxe4 {[%emt 0:00:12]} 35. Nxe4 {[%emt 0:00:22]} d2 {[%emt 0:00:47]} ({Inferior is} 35... Bxf4 36. Rxf6+ (36. Nxf6 $2 {perishes.} d2 $19) 36... Ke7 37. Rxf4 $11) 36. Nd6+ {[%emt 0:00:28]} Ke7 {[%emt 0:00:09]} 37. Ke2 {[%emt 0:00:13]} Bxf4 {[%emt 0:01:12]} 38. Rxb7 {[%emt 0:00:38]} Kxd6 {[%emt 0:00:19] Weighted Error Value: White=0.86/Black=0.24 (precise)} 0-1

[Event "DFMM-LV 2023"]
[Site "Braunfels"]
[Date "2023.06.09"]
[Round "1.36"]
[White "Braeutigam, Irina"]
[Black "Prinzen, Siri Marleen"]
[Result "1/2-1/2"]
[Annotator "TA"]
[ECO "B12"]
[WhiteElo "2007"]
[BlackElo "1724"]
[PlyCount "75"]
[EventDate "2023.06.09"]
[EventType "team-tourn"]
[EventCountry "GER"]
[SourceTitle "playchess.com"]
[Source "ChessBase"]
[SourceQuality "1"]
[TimeControl "40/5400+30:1800+30"]

{[%evp 9,75,-35,-32,-82,-21,-27,57,16,76,46,129,58,70,41,55,53,60,30,37,20,98,72,130,128,158,168,153,77,83,65,164,168,196,146,142,159,200,178,233,97,101,91,79,86,85,61,200,-29,-36,-32,0,-6,0,0,0,0,0,0,0,0,0,0,0,0,0,0,0,0]} 1. e4 {[%emt 0:00:09][%cal Be2e4,Be4e5][%mdl 32]} c6 {[%emt 0:00:04]} 2. d4 {[%emt 0:00:29]} d5 {[%emt 0:00:07]} 3. e5 {[%emt 0:00:07]} c5 {[%emt 0:00:06]} 4. dxc5 {[%emt 0:00:52]} e6 {[%emt 0:00:31] [#]} 5. h4 $146 {[%emt 0:03:13]} ({Predecessor:} 5. a3 Bxc5 6. b4 Be7 7. Nf3 f6 8. Bb2 Nd7 9. c4 Nxe5 10. Nxe5 fxe5 11. Bxe5 Bf6 12. Nd2 a5 {½-½ So,W (2760)-Ding,L (2811) Tata Steel-A 85th 2023 (8)}) 5... Nc6 {[%emt 0:07:46][%mdl 1024] Black has compensation.} 6. Bf4 {[%emt 0:30:56] B12: Caro-Kann: Advance Variation.} (6. Nf3 $15) 6... Nge7 {[%emt 0:09:31]} ({Better is} 6... Bxc5 $17 {Threatens to win with ...f6.} 7. Qd2 Bd4) 7. h5 {[%emt 0:03:13]} Bd7 {[%emt 0:04:43]} (7... Nf5 $11) 8. c3 {[%emt 0:01:57] White is slightly better.} a5 {[%emt 0:05:49]} (8... f6 $11 {keeps the balance.}) 9. Nf3 {[%emt 0:06:04]} (9. Na3 $5 {[%cal Ra3b5]}) 9... Nc8 {[%emt 0:02:11]} (9... Nf5 $14) 10. Bd3 {[%emt 0:09:24]} (10. h6 $16) 10... Bxc5 $14 {[%emt 0:06:11]} 11. O-O {[%emt 0:00:37]} (11. h6 $5 {[%cal Rh6g7]} g6 12. Qc2 $14) 11... N8e7 {[%emt 0:07:06]} 12. Nbd2 {[%emt 0:00:59]} h6 {[%emt 0:06:18]} 13. Nb3 {[%emt 0:02:35]} (13. Nh4 {seems wilder.} O-O 14. Qg4 Kh8 15. a4) 13... Bb6 {[%emt 0:02:33]} 14. Qd2 {[%emt 0:06:51]} Bc7 {[%emt 0:03:25]} (14... a4 $11 15. Nbd4 Nxd4 16. Nxd4 Bxd4 17. cxd4 Qb6) 15. Nc5 {[%emt 0:06:03]} Qc8 {[%emt 0:04:11]} (15... Bc8 $142) 16. b4 $1 $16 {[%emt 0:02:37] White is much more active. The black rooks are badly placed.} b6 {[%emt 0:04:34]} 17. Nxd7 {[%emt 0:02:32]} Qxd7 {[%emt 0:00:21]} 18. Bb5 {[%emt 0:00:11]} (18. Rfe1 $142) 18... O-O {[%emt 0:03:08]} 19. Nd4 {[%emt 0:01:41]} Bb8 {[%emt 0:04:17]} (19... f6 $1 $14) 20. Rfe1 $18 {[%emt 0:03:21][%cal Of4h6]} Qb7 {[%emt 0:02:54]} 21. bxa5 {[%emt 0:06:41]} ({White should play} 21. Bd3 $18) 21... bxa5 $16 {[%emt 0:02:56] aiming for ...Nxd4.} 22. Rab1 {[%emt 0:00:28] Bxc6 would be deadly.} Nxd4 {[%emt 0:01:56]} 23. cxd4 {[%emt 0:00:05][%cal Of4h6] And now Bxh6! would win.} Qa7 {[%emt 0:00:54] [#]} (23... Ba7 $142 24. Bd3 (24. Qxa5 Bb6 $17 {[%mdl 64] Discovered Attack}) 24... Qd7) 24. a4 {[%emt 0:02:05]} (24. Bd3 $1 $18 {[%cal Of4h6] and White stays clearly on top. Black must now prevent Bxh6!} Nf5 25. Bxf5 exf5 26. Bxh6 {[%mdl 64] Demolition} gxh6 27. Qxh6 Qxd4 28. Qg5+ Kh8 29. Qf6+ (29. Qxf5 Ra6 $14) 29... Kh7 30. Qxf5+ Kh8 31. Qf6+ Kh7 32. Rb6) 24... Bc7 {[%emt 0:01:04]} 25. Rb3 {[%emt 0:01:49][%cal Of4h6]} Bb6 {[%emt 0:00:54]} 26. Rd3 {[%emt 0:02:26]} Rac8 {[%emt 0:02:05]} 27. Rd1 {[%emt 0:00:41]} Rc7 {[%emt 0:02:06] [#]} (27... Qc7 $14) 28. Rc3 $2 {[%emt 0:03:06]} ({White must play} 28. Bxh6 $1 $18 Nf5 29. Bg5) 28... Rxc3 $11 {[%emt 0:01:36]} 29. Qxc3 {[%emt 0:00:16]} Rc8 {[%emt 0:00:10]} 30. Qd3 {[%emt 0:00:30] The position is equal.} Rc7 {[%emt 0:02:29]} 31. Be3 {[%emt 0:00:58]} Nc6 {[%emt 0:01:23]} 32. Qd2 {[%emt 0:01:22]} Nb4 {[%emt 0:01:56]} 33. Qe2 {[%emt 0:00:07]} Kh8 {[%emt 0:02:50]} 34. Qg4 {[%emt 0:00:39]} Rc3 {[%emt 0:06:17]} 35. Bd2 {[%emt 0:00:38]} Rc2 {[%emt 0:01:00]} 36. Be3 {[%emt 0:00:13]} Rc3 {[%emt 0:00:04]} 37. Bd2 {[%emt 0:00:36]} Rc2 {[%emt 0:00:05]} 38. Be3 {[%emt 0:01:34] White really could win this.   Weighted Error Value: White=0.26 (precise) /Black=0.29 (precise)} 1/2-1/2

[Event "DFMM-LV 2023"]
[Site "Braunfels"]
[Date "2023.06.09"]
[Round "1.37"]
[White "Stark, Amalia"]
[Black "Leib, Britta"]
[Result "1/2-1/2"]
[Annotator "TA"]
[ECO "C00"]
[WhiteElo "1499"]
[BlackElo "1960"]
[PlyCount "62"]
[EventDate "2023.06.09"]
[EventType "team-tourn"]
[EventCountry "GER"]
[SourceTitle "playchess.com"]
[Source "ChessBase"]
[SourceQuality "1"]
[TimeControl "40/5400+30:1800+30"]

{[%evp 10,62,-22,-14,14,-22,0,6,4,-13,12,-19,-16,-12,-19,-7,-12,-50,-45,-60,-51,-47,-43,-53,-45,-98,-58,-59,-55,-86,-96,-111,-77,-81,-50,-81,-57,-60,-45,-38,0,-60,51,67,69,-12,-8,-84,-86,-558,-76,-146,-158,-135,103]} 1. e4 {[%emt 0:00:04]} e6 {[%emt 0:00:03]} 2. c4 {[%emt 0:00:05]} d5 {[%emt 0:01:01]} 3. cxd5 {[%emt 0:00:09]} exd5 {[%emt 0:00:12]} 4. exd5 {[%emt 0:00:07]} Nf6 {[%emt 0:02:00]} 5. Nc3 {[%emt 0:10:13]} Nxd5 {[%emt 0:01:36]} 6. Bc4 {[%emt 0:06:28]} c6 {[%emt 0:14:21] C00: French: Unusual White 2nd moves.} 7. Qb3 {[%emt 0:02:20][%cal Rc3d5]} Qe7+ {[%emt 0:05:06]} 8. Nge2 {[%emt 0:01:07]} Nb6 {[%emt 0:01:17] The position is equal.} 9. d4 {[%emt 0:06:06] [#]} N8d7 $146 {[%emt 0:05:52]} ({Predecessor:} 9... Nxc4 10. Qxc4 Be6 11. Qd3 Nd7 12. O-O Nb6 13. Re1 O-O-O 14. Qc2 Kb8 15. Bf4+ Ka8 {½-½ Freudenberg,J-Schaefer,M Schleswig Holstein-ch U17 1996 (9)}) 10. Be3 {[%emt 0:03:09]} Nxc4 {[%emt 0:07:22]} 11. Qxc4 {[%emt 0:00:13]} Nb6 {[%emt 0:00:14]} 12. Qd3 {[%emt 0:05:06]} Be6 {[%emt 0:02:44]} 13. b3 {[%emt 0:04:44]} Qd7 {[%emt 0:07:38]} 14. Ng3 {[%emt 0:05:50]} Bb4 {[%emt 0:04:19]} 15. O-O {[%emt 0:01:07]} O-O {[%emt 0:01:59][%cal Be8g8,Bg8g7,Bg7f6][%mdl 32]} 16. Nce4 {[%emt 0:02:19]} h6 {[%emt 0:06:11]} 17. Nh5 {[%emt 0:23:30]} (17. Rad1 $15) 17... f5 {[%emt 0:10:11]} 18. Neg3 {[%emt 0:01:30]} Bf7 {[%emt 0:10:34]} (18... Nd5 {simplifies} 19. Nf4 Rad8 20. Nxd5 Qxd5 21. Ne2 Bf7) 19. Nxg7 {[%emt 0:12:48][%mdl 64] [#] Decoy} Kxg7 {[%emt 0:03:48]} 20. Nxf5+ {[%emt 0:00:07]} Kf6 {[%emt 0:05:32]} 21. Nxh6 {[%emt 0:02:25] aiming for Bf4.} Bg6 {[%emt 0:00:33]} 22. Qe2 {[%emt 0:00:16] White is weak on the light squares} Rae8 {[%emt 0:04:03] [#] Strongly threatening ...Kg7.} 23. Ng4+ $1 {[%emt 0:01:27]} Kg7 $1 {[%emt 0:00:07] And now ...Bh5 would win.} 24. Bh6+ {[%emt 0:04:20]} Kh8 {[%emt 0:00:10]} (24... Kg8 $5 {[%cal Re8e2]} 25. Qd1 Rf5 $17) 25. Ne5 {[%emt 0:00:19]} (25. Qb2 $11 Nd5 26. Bxf8) 25... Qh7 {[%emt 0:00:51]} (25... Qxd4 $2 26. Nxg6+ Kg8 27. Be3 $18) (25... Rg8 $15 26. Bg5 Nd5) 26. Bxf8 $14 {[%emt 0:00:52]} Rxf8 {[%emt 0:00:03]} 27. Qg4 {[%emt 0:00:54]} (27. Nxg6+ $14 Qxg6 28. f4) 27... Bf5 $36 {[%emt 0:00:17][%mdl 2048] Black has the initiative.} 28. Qg5 {[%emt 0:01:40]} (28. Qe2 $11) 28... Nd5 $17 {[%emt 0:01:10] Hoping for ...Rg8.} 29. g4 $2 {[%emt 0:00:35][%mdl 8192]} (29. Rad1 $17 {is more resistant.}) 29... Be7 $2 {[%emt 0:03:00] A strong pair of Bishops.} (29... Rg8 $19 {is more deadly.} 30. Qh6 {[%mdl 64] Decoy} Qxh6 31. Nf7+ Kh7 32. Nxh6 Kxh6) 30. Qh5 {[%emt 0:00:50]} (30. Qd2 $142 Qg7 31. f3) 30... Qxh5 31. gxh5 Bh3 $2 {Weighted Error Value: White=0.43/Black=0.32} (31... Kh7 $17 {and life is bright.} 32. Ng6 Rg8) 1/2-1/2